[Event "Late-Titled-Tuesday-Blitz-June-18-2024"]
[Site "Chess.com"]
[Date "2024.06.18"]
[Round "8"]
[White "Beaterawn"]
[Black "ritanovikova"]
[Result "1/2-1/2"]
[WhiteElo "2371"]
[BlackElo "2215"]
[TimeControl "180+1"]
[EndTime "15:32:25 PDT"]
[Termination "Game drawn - insufficient material"]

1. e4 {[%clk 0:02:57]} 1... e5 {[%clk 0:02:59.2]} 2. Nf3 {[%clk 0:02:57.5]} 2...
Nf6 {[%clk 0:02:59.8]} 3. Nxe5 {[%clk 0:02:57.2]} 3... d6 {[%clk 0:03:00.2]} 4.
Nf3 {[%clk 0:02:57.9]} 4... Nxe4 {[%clk 0:03:00.7]} 5. Nc3 {[%clk 0:02:58.6]}
5... Nxc3 {[%clk 0:03:00.3]} 6. dxc3 {[%clk 0:02:59.5]} 6... Bf5 {[%clk
0:03:00.6]} 7. Bf4 {[%clk 0:02:59.1]} 7... Be7 {[%clk 0:02:59.3]} 8. Qd2 {[%clk
0:02:59.4]} 8... O-O {[%clk 0:02:58.9]} 9. O-O-O {[%clk 0:02:59.9]} 9... Nc6
{[%clk 0:02:46.1]} 10. h4 {[%clk 0:02:57.7]} 10... Bf6 {[%clk 0:02:40.5]} 11.
Bd3 {[%clk 0:02:56.3]} 11... Bg4 {[%clk 0:02:30.4]} 12. Rde1 {[%clk 0:02:44.7]}
12... Qd7 {[%clk 0:02:28.2]} 13. Ng5 {[%clk 0:02:41.9]} 13... Bf5 {[%clk
0:01:53.1]} 14. g4 {[%clk 0:02:35]} 14... Bxd3 {[%clk 0:01:52.5]} 15. Qxd3
{[%clk 0:02:35.9]} 15... g6 {[%clk 0:01:34.1]} 16. h5 {[%clk 0:02:29.2]} 16...
Qxg4 {[%clk 0:01:32.5]} 17. Nxh7 {[%clk 0:02:23]} 17... Qxf4+ {[%clk 0:01:27.4]}
18. Kb1 {[%clk 0:02:22.9]} 18... Kxh7 {[%clk 0:01:06.1]} 19. hxg6+ {[%clk
0:02:22]} 19... Kg8 {[%clk 0:01:00.3]} 20. gxf7+ {[%clk 0:02:19]} 20... Rxf7
{[%clk 0:00:57.8]} 21. Qg6+ {[%clk 0:02:12]} 21... Bg7 {[%clk 0:00:40.5]} 22. a3
{[%clk 0:02:03.5]} 22... Qf5 {[%clk 0:00:35.5]} 23. Qg2 {[%clk 0:01:58.9]} 23...
Ne5 {[%clk 0:00:30.3]} 24. Reg1 {[%clk 0:01:51.5]} 24... Nf3 {[%clk 0:00:27.3]}
25. Rd1 {[%clk 0:01:49.9]} 25... Ne5 {[%clk 0:00:26]} 26. Rdg1 {[%clk
0:01:49.3]} 26... Nf3 {[%clk 0:00:24.1]} 27. Rd1 {[%clk 0:01:49]} 27... Ng5
{[%clk 0:00:21.9]} 28. Rdg1 {[%clk 0:01:48.2]} 28... Ne6 {[%clk 0:00:22]} 29.
Qh2 {[%clk 0:01:44.5]} 29... Kf8 {[%clk 0:00:20.1]} 30. f3 {[%clk 0:01:39.3]}
30... Ke7 {[%clk 0:00:20.1]} 31. Re1 {[%clk 0:01:36.9]} 31... Kd7 {[%clk
0:00:19.3]} 32. Rhg1 {[%clk 0:01:31.5]} 32... Re8 {[%clk 0:00:18.3]} 33. Rg2
{[%clk 0:01:23.9]} 33... Bf6 {[%clk 0:00:18.3]} 34. Rge2 {[%clk 0:01:23.5]}
34... Rfe7 {[%clk 0:00:18.4]} 35. Qf2 {[%clk 0:01:13.5]} 35... Nc5 {[%clk
0:00:18.2]} 36. Rxe7+ {[%clk 0:01:11.4]} 36... Rxe7 {[%clk 0:00:19.1]} 37. Rd1
{[%clk 0:01:11.2]} 37... Qe6 {[%clk 0:00:18.8]} 38. f4 {[%clk 0:01:09]} 38... b6
{[%clk 0:00:18.6]} 39. f5 {[%clk 0:01:06.5]} 39... Qe4 {[%clk 0:00:18.3]} 40.
Qf1 {[%clk 0:01:02.2]} 40... Qc6 {[%clk 0:00:16]} 41. Qc4 {[%clk 0:00:57.6]}
41... a6 {[%clk 0:00:15.7]} 42. a4 {[%clk 0:00:57.4]} 42... b5 {[%clk
0:00:15.4]} 43. axb5 {[%clk 0:00:54.9]} 43... axb5 {[%clk 0:00:16.3]} 44. Qg8
{[%clk 0:00:48.4]} 44... Na4 {[%clk 0:00:15.3]} 45. Qf8 {[%clk 0:00:44.2]} 45...
Nxc3+ {[%clk 0:00:14.5]} 46. bxc3 {[%clk 0:00:39.7]} 46... Qxc3 {[%clk
0:00:15.4]} 47. Kc1 {[%clk 0:00:40.1]} 47... Bg5+ {[%clk 0:00:14]} 48. Kb1
{[%clk 0:00:40.2]} 48... Bf6 {[%clk 0:00:13.3]} 49. Kc1 {[%clk 0:00:39.9]} 49...
b4 {[%clk 0:00:13]} 50. Qa8 {[%clk 0:00:33.3]} 50... b3 {[%clk 0:00:12]} 51.
Qa4+ {[%clk 0:00:32.9]} 51... Kd8 {[%clk 0:00:11.9]} 52. Qa8+ {[%clk 0:00:32.2]}
52... Kd7 {[%clk 0:00:12.4]} 53. Qa4+ {[%clk 0:00:32.6]} 53... Qc6 {[%clk
0:00:12]} 54. Qxb3 {[%clk 0:00:32.5]} 54... Qc5 {[%clk 0:00:11]} 55. Qa4+ {[%clk
0:00:32.2]} 55... Qc6 {[%clk 0:00:11.3]} 56. Qb3 {[%clk 0:00:31.8]} 56... Bg5+
{[%clk 0:00:11.4]} 57. Kb1 {[%clk 0:00:31.6]} 57... Re5 {[%clk 0:00:11.6]} 58.
Qf7+ {[%clk 0:00:30.6]} 58... Be7 {[%clk 0:00:09.3]} 59. f6 {[%clk 0:00:25.3]}
59... Rb5+ {[%clk 0:00:09.4]} 60. Kc1 {[%clk 0:00:25.9]} 60... Re5 {[%clk
0:00:05.8]} 61. fxe7 {[%clk 0:00:25.7]} 61... Rxe7 {[%clk 0:00:06.7]} 62. Qf5+
{[%clk 0:00:25.2]} 62... Kd8 {[%clk 0:00:06.4]} 63. Qf8+ {[%clk 0:00:23.5]}
63... Re8 {[%clk 0:00:06.8]} 64. Qf6+ {[%clk 0:00:23.6]} 64... Kc8 {[%clk
0:00:07.1]} 65. Qf5+ {[%clk 0:00:23.1]} 65... Kb8 {[%clk 0:00:06.8]} 66. Rd3
{[%clk 0:00:22.3]} 66... Re5 {[%clk 0:00:06.5]} 67. Rb3+ {[%clk 0:00:21.3]}
67... Ka7 {[%clk 0:00:05.8]} 68. Qf2+ {[%clk 0:00:20.3]} 68... Qc5 {[%clk
0:00:05.2]} 69. Qf4 {[%clk 0:00:18.3]} 69... Re1+ {[%clk 0:00:04.7]} 70. Kb2
{[%clk 0:00:17.7]} 70... Qe5+ {[%clk 0:00:05.1]} 71. Qxe5 {[%clk 0:00:18.1]}
71... Rxe5 {[%clk 0:00:05.1]} 72. Kc3 {[%clk 0:00:18]} 72... Ra5 {[%clk
0:00:05.3]} 73. Kc4 {[%clk 0:00:17.2]} 73... Rc5+ {[%clk 0:00:05.8]} 74. Kd3
{[%clk 0:00:17.4]} 74... Rc6 {[%clk 0:00:06.3]} 75. c4 {[%clk 0:00:17.4]} 75...
Rb6 {[%clk 0:00:06.8]} 76. Ra3+ {[%clk 0:00:17]} 76... Kb7 {[%clk 0:00:06.5]}
77. Kd4 {[%clk 0:00:17.4]} 77... Kc6 {[%clk 0:00:06.7]} 78. Ra5 {[%clk
0:00:17.2]} 78... Rb1 {[%clk 0:00:06.7]} 79. Ra6+ {[%clk 0:00:14]} 79... Kd7
{[%clk 0:00:06.6]} 80. Ra5 {[%clk 0:00:12]} 80... Rd1+ {[%clk 0:00:06.9]} 81.
Kc3 {[%clk 0:00:10.1]} 81... Rh1 {[%clk 0:00:06.8]} 82. Rg5 {[%clk 0:00:09.9]}
82... Rh3+ {[%clk 0:00:07.1]} 83. Kb4 {[%clk 0:00:10.2]} 83... Rh4 {[%clk
0:00:06.9]} 84. Kb5 {[%clk 0:00:09.9]} 84... c6+ {[%clk 0:00:07.2]} 85. Kb6
{[%clk 0:00:03.6]} 85... Rxc4 {[%clk 0:00:06.4]} 86. Rg7+ {[%clk 0:00:03.9]}
86... Ke6 {[%clk 0:00:06.6]} 87. Rg6+ {[%clk 0:00:04.4]} 87... Kd5 {[%clk
0:00:06.7]} 88. Rg5+ {[%clk 0:00:04.5]} 88... Kd4 {[%clk 0:00:06]} 89. Rg4+
{[%clk 0:00:03.4]} 89... Kc3 {[%clk 0:00:06.4]} 90. Rg3+ {[%clk 0:00:02.8]}
90... Kb4 {[%clk 0:00:06.2]} 91. Rd3 {[%clk 0:00:03.3]} 91... d5 {[%clk
0:00:06.4]} 92. Rd1 {[%clk 0:00:03.4]} 92... d4 {[%clk 0:00:05.5]} 93. Rd3
{[%clk 0:00:03.1]} 93... c5 {[%clk 0:00:04.9]} 94. Kc6 {[%clk 0:00:02.9]} 94...
Rc1 {[%clk 0:00:04.7]} 95. Kd5 {[%clk 0:00:02.9]} 95... Rc3 {[%clk 0:00:04.2]}
96. Rd1 {[%clk 0:00:01.6]} 96... d3 {[%clk 0:00:04.1]} 97. Rb1+ {[%clk
0:00:01.5]} 97... Rb3 {[%clk 0:00:04.2]} 98. Rc1 {[%clk 0:00:01.5]} 98... c4
{[%clk 0:00:04.4]} 99. Rxc4+ {[%clk 0:00:01.9]} 99... Kb5 {[%clk 0:00:03.3]}
100. Rd4 {[%clk 0:00:02.4]} 100... Ra3 {[%clk 0:00:01.7]} 101. Ke4 {[%clk
0:00:02.9]} 101... Kc5 {[%clk 0:00:01.5]} 102. Rxd3 {[%clk 0:00:03.4]} 102...
Rxd3 {[%clk 0:00:02.4]} 103. Kxd3 {[%clk 0:00:04.3]} 1/2-1/2

[Event "Late-Titled-Tuesday-Blitz-June-18-2024"]
[Site "Chess.com"]
[Date "2024.06.18"]
[Round "9"]
[White "StoreySniper"]
[Black "aexmi"]
[Result "0-1"]
[WhiteElo "2390"]
[BlackElo "2299"]
[TimeControl "180+1"]
[EndTime "15:42:15 PDT"]
[Termination "aexmi won on time"]

1. e4 {[%clk 0:02:45.6]} 1... c5 {[%clk 0:02:58.3]} 2. Nf3 {[%clk 0:02:44.7]}
2... g6 {[%clk 0:02:58.5]} 3. d4 {[%clk 0:02:43.7]} 3... cxd4 {[%clk 0:02:59.4]}
4. c3 {[%clk 0:02:43.9]} 4... Bg7 {[%clk 0:02:52.5]} 5. cxd4 {[%clk 0:02:43.5]}
5... d5 {[%clk 0:02:53]} 6. e5 {[%clk 0:02:43.7]} 6... Bg4 {[%clk 0:02:50.7]} 7.
Bb5+ {[%clk 0:02:43.2]} 7... Nc6 {[%clk 0:02:49.8]} 8. Bxc6+ {[%clk 0:02:40]}
8... bxc6 {[%clk 0:02:50.1]} 9. Nc3 {[%clk 0:02:30.4]} 9... e6 {[%clk
0:02:49.9]} 10. O-O {[%clk 0:02:26.2]} 10... Ne7 {[%clk 0:02:49.8]} 11. Bg5
{[%clk 0:02:17.3]} 11... O-O {[%clk 0:02:46.6]} 0-1

[Event "Late-Titled-Tuesday-Blitz-June-18-2024"]
[Site "Chess.com"]
[Date "2024.06.18"]
[Round "9"]
[White "Dolphin_2010"]
[Black "OparinGrigoriy"]
[Result "0-1"]
[WhiteElo "2816"]
[BlackElo "3023"]
[TimeControl "180+1"]
[EndTime "15:42:32 PDT"]
[Termination "OparinGrigoriy won on time"]

1. d4 {[%clk 0:03:00.9]} 1... Nf6 {[%clk 0:02:50.1]} 2. Bg5 {[%clk 0:02:58.6]}
2... Nc6 {[%clk 0:02:49.4]} 3. Bxf6 {[%clk 0:02:57]} 3... gxf6 {[%clk
0:02:48.9]} 4. e3 {[%clk 0:02:51.2]} 4... e5 {[%clk 0:02:44.7]} 5. Nf3 {[%clk
0:02:50.1]} 5... Rg8 {[%clk 0:02:41.6]} 6. g3 {[%clk 0:02:48.9]} 6... d5 {[%clk
0:02:41.5]} 7. Be2 {[%clk 0:02:49]} 7... Bh3 {[%clk 0:02:40]} 8. Nbd2 {[%clk
0:02:38.8]} 8... Qd6 {[%clk 0:02:34.6]} 9. c3 {[%clk 0:02:30.7]} 9... O-O-O
{[%clk 0:02:34.5]} 10. b4 {[%clk 0:02:20.7]} 10... Kb8 {[%clk 0:02:33.9]} 11.
Nb3 {[%clk 0:02:17.7]} 11... f5 {[%clk 0:02:29.6]} 0-1

[Event "Late-Titled-Tuesday-Blitz-June-18-2024"]
[Site "Chess.com"]
[Date "2024.06.18"]
[Round "9"]
[White "kalxandria"]
[Black "dianamirza"]
[Result "1-0"]
[WhiteElo "2245"]
[BlackElo "1805"]
[TimeControl "180+1"]
[EndTime "15:42:33 PDT"]
[Termination "kalxandria won by resignation"]

1. e4 {[%clk 0:03:00.9]} 1... d5 {[%clk 0:02:22.6]} 2. exd5 {[%clk 0:02:59]}
2... Qxd5 {[%clk 0:02:21.5]} 3. Nc3 {[%clk 0:02:57.6]} 3... Qd8 {[%clk 0:02:20]}
4. d4 {[%clk 0:02:55.5]} 4... Nf6 {[%clk 0:02:20.5]} 5. Nf3 {[%clk 0:02:54.3]}
5... Bg4 {[%clk 0:02:13.6]} 6. Bc4 {[%clk 0:02:51.8]} 6... e6 {[%clk 0:02:12.6]}
7. Be3 {[%clk 0:02:49]} 7... Be7 {[%clk 0:02:12]} 8. Qd2 {[%clk 0:02:45.6]} 8...
O-O {[%clk 0:02:11.8]} 9. Ne5 {[%clk 0:02:43]} 9... Bh5 {[%clk 0:02:07]} 10. f3
{[%clk 0:02:41]} 10... Nbd7 {[%clk 0:02:04.8]} 11. O-O-O {[%clk 0:02:29.7]}
11... Nxe5 {[%clk 0:02:03.5]} 12. dxe5 {[%clk 0:02:29.5]} 12... Qxd2+ {[%clk
0:02:04.2]} 13. Rxd2 {[%clk 0:02:28.8]} 13... Ne8 {[%clk 0:02:03.9]} 14. Rd7
{[%clk 0:02:23.4]} 14... Bb4 {[%clk 0:01:58.3]} 15. Ne4 {[%clk 0:02:18.2]} 15...
Bg6 {[%clk 0:01:55]} 16. Bd3 {[%clk 0:02:15.3]} 16... f5 {[%clk 0:01:52.1]} 17.
Ng5 {[%clk 0:01:57.5]} 17... Bf7 {[%clk 0:01:45.2]} 18. Bc4 {[%clk 0:01:42.9]}
18... h6 {[%clk 0:01:09.2]} 19. Nxf7 {[%clk 0:01:40.9]} 19... Rxf7 {[%clk
0:01:08]} 20. Bxe6 {[%clk 0:01:40.5]} 1-0

[Event "Late-Titled-Tuesday-Blitz-June-18-2024"]
[Site "Chess.com"]
[Date "2024.06.18"]
[Round "9"]
[White "Navyblue1"]
[Black "duone"]
[Result "0-1"]
[WhiteElo "2172"]
[BlackElo "2409"]
[TimeControl "180+1"]
[EndTime "15:42:34 PDT"]
[Termination "duone won by resignation"]

1. d4 {[%clk 0:02:06.2]} 1... Nf6 {[%clk 0:02:58.4]} 2. c4 {[%clk 0:02:05.9]}
2... e6 {[%clk 0:02:57.7]} 3. Nf3 {[%clk 0:02:04.7]} 3... d5 {[%clk 0:02:55.8]}
4. Nc3 {[%clk 0:02:03.9]} 4... Bb4 {[%clk 0:02:55.1]} 5. Bg5 {[%clk 0:02:00.8]}
5... dxc4 {[%clk 0:02:55.1]} 6. e4 {[%clk 0:01:57.3]} 6... b5 {[%clk 0:02:55.3]}
7. e5 {[%clk 0:01:55.2]} 7... h6 {[%clk 0:02:55.4]} 8. exf6 {[%clk 0:01:44.2]}
8... hxg5 {[%clk 0:02:54.7]} 9. fxg7 {[%clk 0:01:44.2]} 9... Rg8 {[%clk
0:02:55.3]} 10. h4 {[%clk 0:01:25]} 10... g4 {[%clk 0:02:55]} 11. Ne5 {[%clk
0:01:23.5]} 11... Rxg7 {[%clk 0:02:54.4]} 12. h5 {[%clk 0:01:20]} 12... f5
{[%clk 0:02:54.6]} 13. h6 {[%clk 0:01:18.2]} 13... Rh7 {[%clk 0:02:54.8]} 14.
Qd2 {[%clk 0:01:10.1]} 14... Bb7 {[%clk 0:02:44.5]} 15. O-O-O {[%clk 0:01:05.5]}
15... a6 {[%clk 0:02:43]} 16. f3 {[%clk 0:00:58.4]} 16... gxf3 {[%clk
0:02:40.4]} 17. gxf3 {[%clk 0:00:59.3]} 17... Nd7 {[%clk 0:02:40.5]} 18. Qe3
{[%clk 0:00:44.8]} 18... Nxe5 {[%clk 0:02:34.2]} 19. dxe5 {[%clk 0:00:43.1]}
19... Qe7 {[%clk 0:02:31.5]} 20. Rg1 {[%clk 0:00:39.3]} 20... Bc5 {[%clk
0:02:27.9]} 21. Rg8+ {[%clk 0:00:34.8]} 21... Kf7 {[%clk 0:02:28.1]} 22. Rxa8
{[%clk 0:00:26.7]} 22... Bxe3+ {[%clk 0:02:27.4]} 0-1

[Event "Late-Titled-Tuesday-Blitz-June-18-2024"]
[Site "Chess.com"]
[Date "2024.06.18"]
[Round "9"]
[White "K_A_S_T_O_R"]
[Black "azikom"]
[Result "1-0"]
[WhiteElo "2853"]
[BlackElo "2702"]
[TimeControl "180+1"]
[EndTime "15:43:16 PDT"]
[Termination "K_A_S_T_O_R won by resignation"]

1. e4 {[%clk 0:03:00.9]} 1... Nf6 {[%clk 0:03:00.9]} 2. e5 {[%clk 0:02:59.4]}
2... Nd5 {[%clk 0:03:01.4]} 3. d4 {[%clk 0:03:00]} 3... d6 {[%clk 0:03:01.6]} 4.
Nf3 {[%clk 0:03:00.3]} 4... dxe5 {[%clk 0:03:01.7]} 5. Nxe5 {[%clk 0:03:00.4]}
5... c6 {[%clk 0:03:02.2]} 6. Bd3 {[%clk 0:03:00]} 6... Nd7 {[%clk 0:03:02.4]}
7. Nf3 {[%clk 0:02:59.8]} 7... N7f6 {[%clk 0:03:01.9]} 8. a3 {[%clk 0:02:58.9]}
8... Bg4 {[%clk 0:03:01.7]} 9. O-O {[%clk 0:02:58.1]} 9... e6 {[%clk 0:03:01.2]}
10. c4 {[%clk 0:02:55.8]} 10... Nb6 {[%clk 0:02:58.7]} 11. Be3 {[%clk
0:02:55.6]} 11... Be7 {[%clk 0:02:57.8]} 12. Nbd2 {[%clk 0:02:54.9]} 12... O-O
{[%clk 0:02:57]} 13. Qc2 {[%clk 0:02:54.7]} 13... Bh5 {[%clk 0:02:49.1]} 14. Ne5
{[%clk 0:02:52.2]} 14... Nbd7 {[%clk 0:02:47.4]} 15. h3 {[%clk 0:02:48.2]} 15...
Bg6 {[%clk 0:02:45.6]} 16. Nxg6 {[%clk 0:02:47.8]} 16... hxg6 {[%clk 0:02:46.5]}
17. Nf3 {[%clk 0:02:48.1]} 17... Qc7 {[%clk 0:02:46]} 18. b4 {[%clk 0:02:47.4]}
18... e5 {[%clk 0:02:44.3]} 19. dxe5 {[%clk 0:02:46.3]} 19... Nxe5 {[%clk
0:02:44.4]} 20. Nxe5 {[%clk 0:02:46.6]} 20... Qxe5 {[%clk 0:02:45]} 21. Rfe1
{[%clk 0:02:46.7]} 21... Bd6 {[%clk 0:02:36.8]} 22. g3 {[%clk 0:02:46.7]} 22...
Qh5 {[%clk 0:02:35.2]} 23. Bf1 {[%clk 0:02:44.9]} 23... a5 {[%clk 0:02:27.5]}
24. Rad1 {[%clk 0:02:37.3]} 24... Bc7 {[%clk 0:02:25.5]} 25. Bg2 {[%clk
0:02:33.1]} 25... axb4 {[%clk 0:02:24.5]} 26. axb4 {[%clk 0:02:33.7]} 26... Rad8
{[%clk 0:02:14.5]} 27. Qb3 {[%clk 0:02:27.4]} 27... Rfe8 {[%clk 0:02:08.5]} 28.
Rxd8 {[%clk 0:02:18.8]} 28... Rxd8 {[%clk 0:02:03.6]} 29. b5 {[%clk 0:02:18.4]}
29... Ba5 {[%clk 0:01:40.8]} 30. Ra1 {[%clk 0:02:14]} 30... Bd2 {[%clk 0:01:37]}
31. Rd1 {[%clk 0:02:00.5]} 31... Ba5 {[%clk 0:01:32]} 32. Rxd8+ {[%clk 0:02:00]}
32... Bxd8 {[%clk 0:01:31.9]} 33. bxc6 {[%clk 0:02:00.6]} 33... bxc6 {[%clk
0:01:32.4]} 34. Qb8 {[%clk 0:01:58.2]} 34... Qa5 {[%clk 0:01:31.8]} 35. Bxc6
{[%clk 0:01:58]} 35... Kh7 {[%clk 0:01:28.5]} 36. Qb7 {[%clk 0:01:53]} 36... Bc7
{[%clk 0:01:20.2]} 37. Kg2 {[%clk 0:01:52.7]} 37... Qe5 {[%clk 0:01:13.9]} 38.
Bf4 {[%clk 0:01:50.2]} 1-0

[Event "Late-Titled-Tuesday-Blitz-June-18-2024"]
[Site "Chess.com"]
[Date "2024.06.18"]
[Round "9"]
[White "jcmesafischer"]
[Black "ninjatrick"]
[Result "0-1"]
[WhiteElo "2353"]
[BlackElo "2467"]
[TimeControl "180+1"]
[EndTime "15:43:17 PDT"]
[Termination "ninjatrick won by resignation"]

1. e4 {[%clk 0:02:35]} 1... e5 {[%clk 0:02:58.5]} 2. Nf3 {[%clk 0:02:35.1]} 2...
Nc6 {[%clk 0:02:59.2]} 3. Bb5 {[%clk 0:02:35.4]} 3... Nf6 {[%clk 0:02:59.5]} 4.
d3 {[%clk 0:02:35.4]} 4... Bc5 {[%clk 0:02:56.5]} 5. c3 {[%clk 0:02:34.9]} 5...
O-O {[%clk 0:02:55]} 6. O-O {[%clk 0:02:34.7]} 6... d6 {[%clk 0:02:55.1]} 7. b4
{[%clk 0:02:26.7]} 7... Bb6 {[%clk 0:02:54.1]} 8. a4 {[%clk 0:02:25.5]} 8... a6
{[%clk 0:02:38.4]} 9. Bc4 {[%clk 0:00:17.5]} 9... Bg4 {[%clk 0:02:33.9]} 10. Be3
{[%clk 0:00:17.3]} 10... Ne7 {[%clk 0:02:32.8]} 11. Bxb6 {[%clk 0:00:16.4]}
11... cxb6 {[%clk 0:02:32.9]} 12. Nbd2 {[%clk 0:00:17.1]} 12... Qc7 {[%clk
0:02:31.9]} 13. Rc1 {[%clk 0:00:16.1]} 13... d5 {[%clk 0:02:31.8]} 14. exd5
{[%clk 0:00:15.6]} 14... Nexd5 {[%clk 0:02:31.8]} 15. Re1 {[%clk 0:00:15.4]}
15... Rfe8 {[%clk 0:02:31.4]} 16. Qb3 {[%clk 0:00:15.9]} 16... Rad8 {[%clk
0:02:30.1]} 17. h3 {[%clk 0:00:14.3]} 17... Bf5 {[%clk 0:02:29.4]} 18. Ne4
{[%clk 0:00:13.4]} 18... Nf4 {[%clk 0:02:23.8]} 19. Rcd1 {[%clk 0:00:12.9]}
19... Bxe4 {[%clk 0:02:18.9]} 20. dxe4 {[%clk 0:00:12.1]} 20... Rxd1 {[%clk
0:02:19.6]} 21. Rxd1 {[%clk 0:00:11.5]} 21... Nxe4 {[%clk 0:02:20.4]} 22. Bd5
{[%clk 0:00:06.7]} 22... Nxc3 {[%clk 0:02:18]} 23. Bxf7+ {[%clk 0:00:05]} 23...
Qxf7 {[%clk 0:02:18.9]} 24. Qxc3 {[%clk 0:00:05.5]} 24... Ne2+ {[%clk
0:02:19.7]} 0-1

[Event "Late-Titled-Tuesday-Blitz-June-18-2024"]
[Site "Chess.com"]
[Date "2024.06.18"]
[Round "9"]
[White "Roedor"]
[Black "campochess"]
[Result "1-0"]
[WhiteElo "2443"]
[BlackElo "2185"]
[TimeControl "180+1"]
[EndTime "15:43:24 PDT"]
[Termination "Roedor won by resignation"]

1. d4 {[%clk 0:02:57.3]} 1... Nf6 {[%clk 0:02:58.3]} 2. c4 {[%clk 0:02:56.3]}
2... g6 {[%clk 0:02:58.1]} 3. g3 {[%clk 0:02:56.1]} 3... d5 {[%clk 0:02:57.7]}
4. cxd5 {[%clk 0:02:55.4]} 4... Nxd5 {[%clk 0:02:56.6]} 5. Bg2 {[%clk
0:02:55.2]} 5... Bg7 {[%clk 0:02:56]} 6. Nf3 {[%clk 0:02:55.7]} 6... O-O {[%clk
0:02:55.2]} 7. O-O {[%clk 0:02:56.3]} 7... Nb6 {[%clk 0:02:55]} 8. Nc3 {[%clk
0:02:55.9]} 8... Bg4 {[%clk 0:02:46]} 9. Ne5 {[%clk 0:02:52.1]} 9... Bf5 {[%clk
0:02:33]} 10. Bxb7 {[%clk 0:02:50.2]} 10... N8d7 {[%clk 0:02:12.7]} 11. Nxd7
{[%clk 0:02:47.2]} 11... Qxd7 {[%clk 0:02:12.6]} 12. Bxa8 {[%clk 0:02:36.5]}
12... Rxa8 {[%clk 0:02:11.4]} 13. d5 {[%clk 0:02:33.9]} 13... Rd8 {[%clk
0:02:10.3]} 14. e4 {[%clk 0:02:33.4]} 14... Bh3 {[%clk 0:02:09.2]} 15. Re1
{[%clk 0:02:33.7]} 15... Bg4 {[%clk 0:01:57.6]} 16. f3 {[%clk 0:02:32.5]} 16...
Bh3 {[%clk 0:01:57.6]} 17. Be3 {[%clk 0:02:32.2]} 17... Nc4 {[%clk 0:01:56.8]}
18. Qe2 {[%clk 0:02:27.8]} 18... Nxe3 {[%clk 0:01:55.9]} 19. Qxe3 {[%clk
0:02:28.3]} 19... Qd6 {[%clk 0:01:52]} 20. Rad1 {[%clk 0:02:20.8]} 20... Bc8
{[%clk 0:01:49.6]} 21. Kg2 {[%clk 0:02:17.1]} 21... Qb4 {[%clk 0:01:48.6]} 22.
Rd2 {[%clk 0:02:10.6]} 22... a5 {[%clk 0:01:36.9]} 23. a3 {[%clk 0:02:08.4]}
23... Qb7 {[%clk 0:01:34.1]} 24. Na4 {[%clk 0:02:01.8]} 24... Qb5 {[%clk
0:01:22.2]} 25. Nc3 {[%clk 0:01:58.7]} 25... Qb3 {[%clk 0:01:19.3]} 26. h4
{[%clk 0:01:55.3]} 26... h5 {[%clk 0:01:18]} 27. Qc5 {[%clk 0:01:46.3]} 27...
Re8 {[%clk 0:00:57.2]} 28. Qb5 {[%clk 0:01:40.1]} 28... a4 {[%clk 0:00:48.4]}
29. Qxe8+ {[%clk 0:01:38.9]} 29... Kh7 {[%clk 0:00:47.7]} 30. Qxc8 {[%clk
0:01:39.1]} 1-0

[Event "Late-Titled-Tuesday-Blitz-June-18-2024"]
[Site "Chess.com"]
[Date "2024.06.18"]
[Round "9"]
[White "ChessSG1"]
[Black "dennisodessa"]
[Result "0-1"]
[WhiteElo "2502"]
[BlackElo "2628"]
[TimeControl "180+1"]
[EndTime "15:43:29 PDT"]
[Termination "dennisodessa won by resignation"]

1. c4 {[%clk 0:03:00.9]} 1... e5 {[%clk 0:03:00]} 2. g3 {[%clk 0:03:00.6]} 2...
Nc6 {[%clk 0:03:00.9]} 3. Bg2 {[%clk 0:03:00.6]} 3... Bc5 {[%clk 0:03:01.8]} 4.
Nc3 {[%clk 0:02:58.4]} 4... d6 {[%clk 0:03:02]} 5. a3 {[%clk 0:02:58.3]} 5... a6
{[%clk 0:03:02.2]} 6. e3 {[%clk 0:02:57.2]} 6... Ba7 {[%clk 0:02:59.6]} 7. Nge2
{[%clk 0:02:56.6]} 7... h5 {[%clk 0:02:57.6]} 8. h3 {[%clk 0:02:47.1]} 8... h4
{[%clk 0:02:57]} 9. g4 {[%clk 0:02:46]} 9... f5 {[%clk 0:02:57.8]} 10. gxf5
{[%clk 0:02:42.9]} 10... Bxf5 {[%clk 0:02:58.7]} 11. d3 {[%clk 0:02:42.1]} 11...
Nf6 {[%clk 0:02:57.9]} 12. b4 {[%clk 0:02:37.8]} 12... Qd7 {[%clk 0:02:57.3]}
13. Bb2 {[%clk 0:02:31.6]} 13... g5 {[%clk 0:02:44.6]} 14. Qd2 {[%clk
0:02:30.4]} 14... g4 {[%clk 0:02:43.8]} 15. hxg4 {[%clk 0:02:26.5]} 15... Bxg4
{[%clk 0:02:44.7]} 16. Nd5 {[%clk 0:02:21.2]} 16... Nxd5 {[%clk 0:02:42.7]} 17.
cxd5 {[%clk 0:02:20.2]} 17... Ne7 {[%clk 0:02:41.2]} 18. O-O-O {[%clk
0:02:13.7]} 18... h3 {[%clk 0:02:32.8]} 19. f3 {[%clk 0:01:57.7]} 19... O-O-O
{[%clk 0:02:31.6]} 20. fxg4 {[%clk 0:01:27.1]} 20... hxg2 {[%clk 0:02:32.5]} 21.
Rxh8 {[%clk 0:01:03.1]} 21... Rxh8 {[%clk 0:02:33.4]} 22. Nf4 {[%clk 0:01:02.3]}
22... exf4 {[%clk 0:02:04.7]} 23. exf4 {[%clk 0:00:48.3]} 23... Rh2 {[%clk
0:01:39.5]} 24. Rg1 {[%clk 0:00:28.7]} 24... Bxg1 {[%clk 0:01:38.2]} 0-1

[Event "Late-Titled-Tuesday-Blitz-June-18-2024"]
[Site "Chess.com"]
[Date "2024.06.18"]
[Round "9"]
[White "EmmaChess"]
[Black "js20000"]
[Result "0-1"]
[WhiteElo "2651"]
[BlackElo "2816"]
[TimeControl "180+1"]
[EndTime "15:43:30 PDT"]
[Termination "js20000 won by resignation"]

1. Nf3 {[%clk 0:03:00.9]} 1... d5 {[%clk 0:02:58.1]} 2. g3 {[%clk 0:02:58.4]}
2... Nd7 {[%clk 0:02:58.2]} 3. Bg2 {[%clk 0:02:58.7]} 3... e5 {[%clk 0:02:57.8]}
4. d3 {[%clk 0:02:59.2]} 4... Ngf6 {[%clk 0:02:58.1]} 5. O-O {[%clk 0:02:57.7]}
5... c6 {[%clk 0:02:58.6]} 6. e4 {[%clk 0:02:56.1]} 6... Bd6 {[%clk 0:02:48.1]}
7. exd5 {[%clk 0:02:50.5]} 7... cxd5 {[%clk 0:02:49]} 8. c4 {[%clk 0:02:51.1]}
8... O-O {[%clk 0:02:48.9]} 9. Nc3 {[%clk 0:02:50.9]} 9... d4 {[%clk 0:02:48.9]}
10. Nb5 {[%clk 0:02:50.7]} 10... Be7 {[%clk 0:02:47.2]} 11. Re1 {[%clk
0:02:49.8]} 11... a6 {[%clk 0:02:47.2]} 12. Na3 {[%clk 0:02:50.1]} 12... Bb4
{[%clk 0:02:47.7]} 13. Bd2 {[%clk 0:02:48.6]} 13... Bxa3 {[%clk 0:02:46.5]} 14.
bxa3 {[%clk 0:02:49.5]} 14... Re8 {[%clk 0:02:45.9]} 15. Bb4 {[%clk 0:02:42.7]}
15... Qc7 {[%clk 0:02:42.5]} 16. a4 {[%clk 0:02:34.9]} 16... a5 {[%clk
0:02:36.8]} 17. Ba3 {[%clk 0:02:34.3]} 17... Nc5 {[%clk 0:02:37]} 18. Rb1 {[%clk
0:02:32.5]} 18... Bf5 {[%clk 0:02:31.5]} 19. Bxc5 {[%clk 0:02:31.5]} 19... Qxc5
{[%clk 0:02:32.4]} 20. Rb5 {[%clk 0:02:26.8]} 20... Qa3 {[%clk 0:02:30.9]} 21.
Nxe5 {[%clk 0:02:22.3]} 21... Qxa2 {[%clk 0:02:24.3]} 22. Bxb7 {[%clk 0:02:13]}
22... Rad8 {[%clk 0:02:19.6]} 23. Nxf7 {[%clk 0:01:52.3]} 23... Bg4 {[%clk
0:02:15.9]} 24. f3 {[%clk 0:00:39.4]} 24... Bh3 {[%clk 0:02:10.8]} 25. f4 {[%clk
0:00:15.5]} 25... Ng4 {[%clk 0:02:10.1]} 26. Nh6+ {[%clk 0:00:06]} 26... gxh6
{[%clk 0:02:09.2]} 27. Bd5+ {[%clk 0:00:04.9]} 27... Kh8 {[%clk 0:02:09.1]} 0-1